bitfinex/quotes_BTCUSD_20240729
["timestamp","ask_amount","ask_price","bid_price","bid_amount"]
[1722212141978,0.00084,68798.0,68797.0,0.813988]
[1722212142175,0.00084,68798.0,68797.0,0.9453868]
[1722212142426,0.00084,68798.0,68797.0,0.8953868]
[1722212142600,0.00084,68798.0,68797.0,0.813988]
[1722212145907,0.00084,68798.0,68797.0,1.096556]
[1722212146109,0.00084,68798.0,68797.0,0.863988]
[1722212146271,0.00084,68798.0,68797.0,0.963988]
[1722212146470,0.00084,68798.0,68797.0,1.00816978]
[1722212146868,0.00084,68798.0,68797.0,1.24073778]
[1722212147085,0.00084,68798.0,68797.0,1.00816978]
[1722212147332,0.00084,68798.0,68797.0,1.16166978]
[1722212147530,0.00084,68798.0,68797.0,1.41723778]
[1722212147736,0.00084,68798.0,68797.0,1.017488]
[1722212149622,0.00084,68798.0,68797.0,0.813988]
[1722212155191,0.00084,68798.0,68797.0,0.863988]
[1722212155707,0.00084,68798.0,68797.0,1.096556]
[1722212156310,0.00084,68798.0,68797.0,1.350056]
[1722212156513,0.00084,68798.0,68797.0,1.52531557]
[1722212156740,0.00084,68798.0,68797.0,1.91928357]
[1722212156947,0.00819,68820.0,68819.0,0.581232]
[1722212157149,0.00819,68820.0,68819.0,0.813725]
[1722212157551,0.00819,68820.0,68819.0,0.348739]
[1722212157750,0.00819,68820.0,68819.0,0.4068634]
[1722212157995,0.00819,68820.0,68819.0,0.6393564]
[1722212159280,0.05170008,68820.0,68819.0,0.8718494]
[1722212160090,0.00819,68820.0,68819.0,0.8718494]
[1722212160295,0.00953902,68820.0,68819.0,1.1043424]
[1722212160492,0.00819,68820.0,68819.0,0.8718494]
[1722212160900,0.00819,68820.0,68819.0,1.4679424]
[1722212161097,0.00819,68820.0,68819.0,1.4909424]
[1722212161578,0.00819,68820.0,68819.0,1.7254354]
[1722212162098,0.00819,68820.0,68819.0,1.8254354]
[1722212162295,0.002,68829.0,68828.0,1.582046]
[1722212162577,0.002,68829.0,68828.0,1.37824882]
[1722212162998,0.002,68829.0,68828.0,0.94228582]
[1722212163950,0.002,68829.0,68828.0,0.348694]
[1722212164154,0.002,68829.0,68828.0,0.581157]
[1722212165405,0.002,68829.0,68828.0,0.81362]
[1722212165892,0.002,68829.0,68828.0,1.249583]
[1722212166314,0.002,68829.0,68828.0,1.01712]
[1722212166547,0.002,68829.0,68828.0,0.94609268]
[1722212168029,0.002,68829.0,68828.0,1.45718547]
[1722212168242,0.002,68829.0,68828.0,1.65708547]
[1722212168610,0.002,68829.0,68828.0,1.88954847]
[1722212168723,0.002,68829.0,68828.0,1.55708547]
[1722212169131,0.002,68829.0,68828.0,1.53408547]
[1722212170557,0.002,68829.0,68828.0,1.55708547]
[1722212170757,0.002,68829.0,68828.0,4.53408547]
[1722212173338,0.002,68829.0,68828.0,4.55708547]
[1722212174966,0.002,68829.0,68828.0,4.65708547]
[1722212175169,0.002,68829.0,68828.0,4.75708547]
[1722212175576,0.002,68829.0,68828.0,4.99154847]
[1722212175810,1e-06,68833.0,68832.0,1.439025]
[1722212175956,1e-06,68833.0,68832.0,1.97171119]
[1722212176158,1e-06,68833.0,68832.0,2.20416119]
[1722212177589,1e-06,68833.0,68832.0,2.23907719]
[1722212177901,1e-06,68833.0,68832.0,2.20216119]
[1722212178306,1e-06,68833.0,68832.0,1.39950162]
[1722212179206,1e-06,68833.0,68832.0,1.49950162]
[1722212180348,1e-06,68833.0,68832.0,1.22386624]
[1722212180552,1e-06,68833.0,68832.0,1.14405162]
[1722212181267,1e-06,68833.0,68832.0,0.84055162]
[1722212181467,1e-06,68833.0,68832.0,0.60810162]
[1722212181665,1e-06,68833.0,68829.0,0.0383955]
[1722212181979,1e-06,68833.0,68828.0,3.0]
[1722212181980,0.00143214,68832.0,68828.0,3.0]
[1722212182185,0.00143214,68832.0,68831.0,0.116226]
[1722212182504,0.00143214,68832.0,68831.0,0.348679]
[1722212182708,0.00143214,68832.0,68831.0,0.73139157]
[1722212183080,0.00143214,68832.0,68831.0,0.348679]
[1722212183557,0.00143214,68832.0,68831.0,0.631132]
[1722212183763,1e-06,68833.0,68832.0,0.398675]
[1722212183964,1e-06,68833.0,68832.0,1.017075]
[1722212184385,1e-06,68833.0,68832.0,1.040075]
[1722212184621,1e-06,68833.0,68832.0,2.62744414]
[1722212184788,0.00819,68847.0,68846.0,1.016907]
[1722212185000,0.00819,68847.0,68846.0,1.039907]
[1722212185419,0.00819,68847.0,68846.0,0.863407]
[1722212186311,0.00819,68847.0,68846.0,1.249309]
[1722212186472,0.00819,68847.0,68846.0,1.4072399]
[1722212186916,0.00819,68847.0,68846.0,1.5072399]
[1722212187117,0.00819,68847.0,68846.0,1.4072399]
[1722212187322,0.00819,68847.0,68846.0,1.95820147]
[1722212187473,1e-08,68847.0,68846.0,2.45730347]
[1722212187692,1e-08,68847.0,68846.0,2.35530347]
[1722212187894,1e-08,68847.0,68846.0,2.45730347]
[1722212188681,0.002,68859.0,68858.0,0.419681]
[1722212188880,0.002,68859.0,68858.0,1.61018297]
[1722212189126,0.002,68859.0,68858.0,2.4908081]
[1722212189705,0.002,68859.0,68858.0,2.40856897]
[1722212189873,0.002,68859.0,68858.0,1.47879486]
[1722212190123,0.002,68859.0,68858.0,1.3966474]
[1722212191118,0.002,68879.0,68858.0,1.3966474]
[1722212191119,0.116128,68889.0,68888.0,0.07512979]
[1722212191314,0.61623831,68889.0,68888.0,0.07512979]
[1722212191517,0.38398131,68889.0,68888.0,0.07512979]
[1722212191676,0.38398131,68889.0,68886.0,0.05]
[1722212191884,0.38398131,68889.0,68877.0,0.1]
[1722212191885,0.232264,68887.0,68883.0,0.05]
[1722212192096,0.374937,68884.0,68883.0,0.05]
[1722212192324,0.38399031,68884.0,68883.0,0.05]
[1722212192797,0.26785331,68884.0,68883.0,0.05]
[1722212193375,0.116134,68886.0,68884.0,0.05]
[1722212193578,0.348406,68885.0,68884.0,0.05]
[1722212193815,0.35745933,68885.0,68884.0,0.05]
[1722212193981,0.00905333,68885.0,68884.0,0.05]
[1722212194187,0.259635,68885.0,68884.0,0.05]
[1722212194401,0.50095933,68885.0,68884.0,0.05]
[1722212194582,0.348411,68884.0,68883.0,0.12512979]
[1722212194783,0.12519039,68884.0,68883.0,0.12512979]
[1722212194988,0.00905339,68884.0,68883.0,0.12512979]
[1722212195388,0.0432588,68902.0,68895.0,0.05]
[1722212195625,0.06726363,68896.0,68895.0,0.05]
[1722212195973,0.21076363,68896.0,68895.0,0.05]
[1722212196622,0.201711,68896.0,68895.0,0.05]
[1722212196936,0.21076294,68896.0,68895.0,0.05]
[1722212197363,0.15255194,68896.0,68895.0,0.07234757]
[1722212197575,0.15255194,68896.0,68895.0,0.05]
[1722212198361,0.1435,68896.0,68895.0,0.05]
[1722212198544,0.1435,68896.0,68895.0,0.166118]
[1722212198745,0.0802,68896.0,68895.0,0.730592]
[1722212199020,0.06490094,68917.0,68901.0,0.166108]
[1722212199021,0.0632,68902.0,68901.0,0.166108]
[1722212199225,0.0632,68902.0,68901.0,0.62328819]
[1722212199424,0.0632,68902.0,68901.0,0.80567179]
[1722212199634,0.0826,68904.0,68903.0,0.05]
[1722212201860,0.08403214,68904.0,68903.0,0.05]
[1722212202278,0.08403214,68904.0,68903.0,0.17861798]
[1722212202449,0.0826,68904.0,68903.0,0.06251298]
[1722212202650,0.0826,68904.0,68903.0,0.166105]
[1722212203034,0.0826,68904.0,68903.0,0.498315]
[1722212203295,0.0632,68908.0,68901.0,0.07512979]
[1722212203296,0.0632,68908.0,68907.0,0.05]
[1722212203701,0.0753,68912.0,68911.0,0.166091]
[1722212203905,0.0753,68912.0,68911.0,0.05]
[1722212204112,0.0629,68925.0,68924.0,0.05]
[1722212204525,0.058181,68933.0,68932.0,0.05]
[1722212204741,0.058181,68933.0,68932.0,0.166056]
[1722212204742,0.0629,68933.0,68932.0,0.166056]
[1722212204944,0.0753,68935.0,68934.0,0.398159]
[1722212205149,0.002,68939.0,68938.0,0.166046]
[1722212205351,0.002,68939.0,68938.0,0.398138]
[1722212205752,0.002,68939.0,68938.0,0.73023]
[1722212205959,0.002,68939.0,68938.0,1.06983367]
[1722212206166,0.002,68939.0,68938.0,0.99392471]
[1722212206373,0.002,68939.0,68938.0,1.22042471]
[1722212206779,0.002,68939.0,68938.0,1.12042471]
[1722212207075,0.002,68939.0,68938.0,1.11834971]
[1722212207491,0.002,68939.0,68938.0,0.64487434]
[1722212207690,0.002,68939.0,68938.0,0.68077946]
[1722212207911,0.002,68939.0,68938.0,1.09202308]
[1722212208121,0.002,68939.0,68938.0,1.1838774]
[1722212208455,0.002,68939.0,68938.0,1.4159694]
[1722212208629,0.002,68939.0,68938.0,1.56546634]
[1722212209172,0.002,68939.0,68938.0,1.56586596]
[1722212209603,0.002,68939.0,68938.0,1.52361202]
[1722212209804,0.002,68939.0,68938.0,1.09202308]
[1722212209920,0.002,68939.0,68938.0,1.04188933]
[1722212210122,0.002,68939.0,68938.0,1.14188933]
[1722212210608,0.002,68939.0,68938.0,1.32665179]
[1722212210996,0.002,68939.0,68938.0,1.37398133]
[1722212211158,0.002,68939.0,68938.0,1.75703903]
[1722212211360,0.00818,68953.0,68948.0,1.247303]
[1722212211560,0.00818,68953.0,68948.0,1.31763254]
[1722212212145,0.00818,68953.0,68948.0,1.03557454]
[1722212212349,0.00818,68953.0,68948.0,0.988245]
[1722212212558,0.231979,68972.0,68948.0,0.988245]
[1722212212559,0.00017626,68981.0,68978.0,0.2035]
[1722212212761,0.00017626,68981.0,68978.0,0.497937]
[1722212212977,0.00017626,68981.0,68978.0,0.54154154]
[1722212213190,0.00017626,68981.0,68978.0,0.85509954]
[1722212213372,0.00017626,68981.0,68980.0,0.778877]
[1722212213567,0.00017626,68981.0,68980.0,0.92061133]
[1722212213767,0.00017626,68981.0,68980.0,1.33576233]
[1722212213973,0.00017626,68981.0,68980.0,1.37586672]
[1722212214169,0.00017626,68981.0,68980.0,2.05807729]
[1722212214377,0.00017626,68981.0,68980.0,1.60482836]
[1722212214579,0.00017626,68981.0,68980.0,4.41942845]
[1722212214781,0.00113688,68995.0,68986.0,0.05]
[1722212214987,0.32147238,69000.0,68999.0,0.70033]
[1722212215210,0.32147238,69000.0,68999.0,1.09144581]
[1722212215480,0.32147238,69000.0,68999.0,1.43439637]
[1722212215658,0.32147238,69000.0,68999.0,1.89817037]
[1722212215856,0.32147238,69000.0,68999.0,1.99817037]
[1722212216055,0.32147238,69000.0,68999.0,1.76628337]
[1722212216258,0.32147238,69000.0,68999.0,1.72461837]
[1722212216438,0.32147238,69000.0,68999.0,2.0999412]
[1722212216758,0.00703564,69000.0,68999.0,2.2104412]
[1722212217099,0.00703564,69000.0,68999.0,2.4653282]
[1722212217302,0.0001762,69006.0,69001.0,1.14000436]
[1722212217510,0.1,69016.0,69011.0,0.48337]
[1722212217709,0.1,69016.0,69011.0,1.24024155]
[1722212217917,0.12088555,69012.0,69011.0,0.994064]
[1722212218117,0.07088555,69012.0,69011.0,1.05835467]
[1722212218329,0.07088555,69012.0,69011.0,1.10094625]
[1722212218569,0.07088555,69012.0,69011.0,1.36881342]
[1722212218768,0.07088555,69012.0,69011.0,1.21855385]
[1722212218974,0.07088555,69012.0,69011.0,0.98670685]
[1722212219851,0.07088555,69012.0,69011.0,0.08388225]
[1722212219852,0.12088555,69012.0,69011.0,0.08388225]
[1722212220033,0.12088555,69012.0,69011.0,0.15721367]
[1722212220440,0.05,69004.0,69003.0,0.30700279]
[1722212220792,0.05,69004.0,69003.0,0.23990737]
[1722212221037,0.052,69004.0,69003.0,0.12397137]
[1722212221239,0.052,69004.0,69003.0,0.07512979]
[1722212221240,0.1137,69004.0,69003.0,0.07512979]
[1722212221441,0.0637,69004.0,69003.0,0.07512979]
[1722212222037,0.0617,69004.0,69003.0,0.07512979]
[1722212222237,0.1137,69004.0,69003.0,0.19106579]
[1722212222449,0.1137,69004.0,69003.0,0.12390227]
[1722212222648,0.1137,69004.0,69003.0,0.07512979]
[1722212222858,0.1137,69004.0,69003.0,0.19106579]
[1722212223105,0.0637,69004.0,69003.0,0.07512979]
[1722212223238,0.1137,69004.0,69003.0,0.07512979]
[1722212223439,0.06166,69004.0,69003.0,0.07512979]
[1722212223696,0.06166,69004.0,68992.0,0.115954]
[1722212223697,0.05,68997.0,68992.0,0.115954]
[1722212223895,0.052,68997.0,68990.0,0.231917]
[1722212224095,0.052,68997.0,68989.0,0.07512979]
[1722212224096,0.102,68997.0,68989.0,0.07512979]
[1722212224296,0.526941,68997.0,68989.0,0.07512979]
[1722212224499,0.526941,68997.0,68973.0,0.07512979]
[1722212224500,0.1,68987.0,68975.0,0.231965]
[1722212224717,0.002,68981.0,68974.0,0.231968]
[1722212224965,0.002,68981.0,68980.0,3.34136436]
[1722212225371,0.1,68987.0,68982.0,0.115972]
[1722212225372,0.05,68983.0,68982.0,0.115972]
[1722212225541,0.0771,68997.0,68981.0,0.00289887]
[1722212225542,0.05,68996.0,68981.0,0.00289887]
[1722212225745,0.15,68997.0,68996.0,0.347845]
[1722212225951,0.014,69026.0,68996.0,0.347845]
[1722212225952,0.05428,69021.0,69008.0,0.115927]
[1722212226155,0.00428,69021.0,69011.0,0.34777]
[1722212226358,0.00428,69021.0,69011.0,0.579617]
[1722212226558,0.12088555,69012.0,69011.0,0.6223369]
[1722212226760,0.07088555,69012.0,69011.0,0.579617]
[1722212226973,0.07088555,69012.0,69011.0,0.811464]
[1722212227164,0.07088555,69012.0,69011.0,0.87367246]
[1722212227526,0.07088555,69012.0,69011.0,1.00627353]
[1722212227692,0.07088555,69012.0,69011.0,0.96103971]
[1722212227900,0.07088555,69012.0,69011.0,0.85067246]
[1722212228034,0.12088555,69012.0,69011.0,0.61882546]
[1722212228237,0.12288555,69012.0,69011.0,0.231847]
[1722212228445,0.12088555,69012.0,69011.0,0.579617]
[1722212228650,0.12088555,69012.0,69011.0,0.811464]
[1722212228651,0.07088555,69012.0,69011.0,0.811464]
[1722212228856,0.07088555,69012.0,69011.0,0.94039917]
[1722212229061,0.07088555,69012.0,69011.0,1.09389917]
[1722212229495,0.07088555,69012.0,69011.0,1.32574617]
[1722212229721,0.07088555,69012.0,69011.0,1.34874617]
[1722212229942,0.07088555,69012.0,69011.0,1.00840834]
[1722212230832,0.07088555,69012.0,69011.0,1.41351491]
[1722212231053,0.07088555,69012.0,69011.0,1.59121491]
[1722212231254,0.06198355,69016.0,69015.0,1.196748]
[1722212231471,0.06198355,69016.0,69015.0,1.37000757]
[1722212231675,0.11198355,69016.0,69015.0,0.811415]
[1722212231993,0.11198355,69016.0,69015.0,0.579582]
[1722212231994,0.21198355,69016.0,69015.0,0.579582]
[1722212232216,0.21398355,69016.0,69015.0,0.347749]
[1722212233192,0.21398355,69016.0,69012.0,0.07512979]
[1722212233193,0.152,69013.0,69012.0,0.07512979]
[1722212233432,0.152,69013.0,69012.0,0.42289379]
[1722212233581,0.152,69013.0,69012.0,0.07512979]
[1722212234211,0.0832,69015.0,69004.0,0.07512979]
[1722212234212,0.152,69005.0,69004.0,0.07512979]
[1722212234414,0.0832,69015.0,68995.0,0.19107979]
[1722212234415,0.152,68996.0,68995.0,0.19107979]
[1722212234593,0.152,68996.0,68995.0,0.42297979]
[1722212234792,0.05,68996.0,68995.0,0.69717777]
[1722212235005,0.15,68996.0,68995.0,0.42297979]
[1722212235209,0.152,68996.0,68995.0,0.42297979]
[1722212235409,0.152,68996.0,68995.0,0.65487979]
[1722212235609,0.2343,68996.0,68995.0,0.07512979]
[1722212235808,0.2343,68996.0,68988.0,0.07512979]
[1722212235809,0.152,68989.0,68988.0,0.07512979]
[1722212236419,0.152,68989.0,68970.0,0.0817]
[1722212236420,0.152,68981.0,68970.0,0.231981]
[1722212236622,0.152,68981.0,68966.0,0.231996]
[1722212236623,0.1787,68981.0,68966.0,0.231996]
[1722212236821,0.63712,68981.0,68980.0,0.9336]
[1722212237021,0.1,68961.0,68960.0,0.07512979]
[1722212237247,0.152,68961.0,68960.0,0.19113879]
[1722212237448,0.152,68961.0,68960.0,0.07512979]
[1722212237449,0.2966,68961.0,68960.0,0.07512979]
[1722212238919,0.412607,68961.0,68960.0,0.07512979]
[1722212239152,0.2966,68961.0,68960.0,0.07512979]
[1722212239603,0.1946,68961.0,68960.0,0.19865177]
[1722212239804,0.1,68969.0,68968.0,0.347986]
[1722212240175,0.1,68969.0,68968.0,0.65510679]
[1722212240176,0.15,68969.0,68968.0,0.65510679]
[1722212240355,0.152,68974.0,68973.0,0.347961]
[1722212240581,0.15,68974.0,68973.0,0.579935]
[1722212240772,0.15,68974.0,68973.0,0.115987]
[1722212240980,0.002,68975.0,68968.0,0.42311579]
[1722212240981,0.15,68969.0,68968.0,0.42311579]
[1722212241175,0.152,68969.0,68968.0,0.42311579]
[1722212241610,0.152,68969.0,68968.0,0.19112479]
[1722212241933,0.15,68969.0,68968.0,0.65510679]
[1722212242467,0.05,68969.0,68968.0,0.65510679]
[1722212242681,0.15,68970.0,68969.0,0.347982]
[1722212242900,0.15,68970.0,68969.0,0.811958]
[1722212243163,0.16518194,68970.0,68969.0,0.57997]
[1722212243576,0.11518194,68970.0,68969.0,0.57997]
[1722212243807,0.16718194,68970.0,68969.0,0.115994]
[1722212244236,0.16718194,68970.0,68968.0,0.07512979]
[1722212244237,0.2313,68969.0,68968.0,0.07512979]
[1722212244903,0.347294,68969.0,68968.0,0.07512979]
[1722212245143,0.579282,68969.0,68968.0,0.07512979]
[1722212245346,0.152,68961.0,68960.0,0.07512979]
[1722212245544,0.152,68961.0,68960.0,0.19113879]
[1722212245973,0.152,68961.0,68960.0,0.42315679]
[1722212246183,0.152,68961.0,68960.0,0.07512979]
[1722212246384,0.102,68961.0,68960.0,0.07512979]
[1722212246546,0.152,68961.0,68960.0,0.07512979]
[1722212247001,0.152,68961.0,68960.0,0.00512979]
[1722212247288,0.152,68961.0,68960.0,0.12113879]
[1722212247505,0.152,68961.0,68960.0,0.35315679]
[1722212247748,0.152,68961.0,68960.0,0.12113879]
[1722212247992,0.152,68961.0,68960.0,0.00512979]
[1722212248694,0.152,68954.0,68953.0,0.07512979]
[1722212249283,0.11744114,68960.0,68938.0,0.52590851]
[1722212249284,0.152,68946.0,68945.0,0.19116279]
[1722212249485,0.152,68946.0,68945.0,0.42323279]
[1722212249731,0.152,68946.0,68945.0,0.65530179]
[1722212250397,0.15,68946.0,68945.0,0.65530179]
[1722212250603,0.15,68946.0,68945.0,0.88737079]
[1722212251104,0.1,68946.0,68945.0,0.88737079]
[1722212251668,0.15,68946.0,68945.0,0.88737079]
[1722212252541,0.15,68950.0,68949.0,0.580137]
[1722212253061,0.152,68950.0,68949.0,0.580137]
[1722212253262,0.15,68950.0,68949.0,0.580137]
[1722212253618,0.152,68950.0,68949.0,0.348082]
[1722212253817,0.152,68947.0,68946.0,0.116032]
[1722212254142,0.152,68947.0,68946.0,0.580162]
[1722212254896,0.152,68947.0,68946.0,0.348097]
[1722212255102,0.152,68946.0,68945.0,0.07512979]
[1722212255344,0.152,68946.0,68945.0,0.42323279]
[1722212255586,0.152,68946.0,68945.0,0.19116379]
[1722212255952,0.152,68946.0,68945.0,0.65530179]
[1722212256084,0.152,68946.0,68945.0,0.42323279]
[1722212256493,0.152,68946.0,68945.0,0.19116379]
[1722212256698,0.152,68946.0,68945.0,0.07512979]
[1722212257338,0.329432,68946.0,68945.0,0.07512979]
[1722212257557,0.268044,68939.0,68938.0,0.07512979]
[1722212257826,0.152,68939.0,68938.0,0.07512979]
[1722212258498,0.16718863,68939.0,68938.0,0.19117579]
[1722212258669,0.01518863,68939.0,68938.0,0.72179547]
[1722212258884,0.01518863,68939.0,68938.0,1.18597947]
[1722212259687,6.3e-07,68939.0,68938.0,2.16364304]
[1722212259890,6.3e-07,68939.0,68938.0,2.30354304]
[1722212260405,0.1,68968.0,68938.0,2.30354304]
[1722212260406,0.05,68968.0,68967.0,0.231995]
[1722212260594,0.05,68969.0,68968.0,0.579977]
[1722212260795,0.231908,68993.0,68968.0,0.579977]
[1722212260796,0.1,68970.0,68969.0,0.57997]
[1722212260970,0.15,68970.0,68969.0,0.811958]
[1722212261178,0.0609,68984.0,68968.0,0.07512979]
[1722212261179,0.152,68969.0,68968.0,0.07512979]
[1722212261381,0.152,68969.0,68968.0,0.19112479]
[1722212261581,0.152,68969.0,68968.0,0.65510679]
[1722212261986,0.152,68969.0,68968.0,0.88709779]
[1722212262184,0.152,68969.0,68968.0,0.97580757]
[1722212262398,0.152,68969.0,68968.0,0.65510679]
[1722212262597,0.15,68969.0,68968.0,0.65510679]
[1722212263607,0.15,68969.0,68968.0,0.42311579]
[1722212263775,0.152,68969.0,68968.0,0.42311579]
[1722212263977,0.152,68969.0,68968.0,0.65510679]
[1722212264348,0.15,68969.0,68968.0,0.88709779]
[1722212264740,0.1,68976.0,68968.0,0.07512979]
[1722212264884,0.1,68978.0,68977.0,0.347941]
[1722212265061,0.1,68978.0,68977.0,0.579902]
[1722212265273,0.1,68979.0,68978.0,0.579895]
[1722212265497,0.1,68979.0,68978.0,0.811853]
[1722212265715,0.15,68979.0,68978.0,0.579895]
[1722212265953,0.152,68979.0,68978.0,0.579895]
[1722212266340,0.15,68979.0,68978.0,0.579895]
[1722212267437,0.15,68979.0,68975.0,0.07512979]
[1722212267438,0.05,68981.0,68975.0,0.07512979]
[1722212267642,0.00143214,68980.0,68979.0,0.115977]
[1722212267843,0.00143214,68980.0,68979.0,0.579885]
[1722212268075,0.1,68984.0,68983.0,0.579852]
[1722212268289,0.1,68986.0,68985.0,0.115967]
[1722212268886,0.05,68988.0,68987.0,0.463854]
[1722212269092,0.05,68988.0,68987.0,0.811744]
[1722212269516,0.01518078,69005.0,68987.0,0.811744]
[1722212269517,0.1,68992.0,68991.0,0.927656]
[1722212269709,0.1,68992.0,68991.0,1.043613]
[1722212270138,0.05,68992.0,68991.0,0.811699]
[1722212270491,0.15,68992.0,68991.0,0.811699]
[1722212270893,0.05,68992.0,68991.0,0.811699]
[1722212271064,0.15,68992.0,68991.0,0.811699]
[1722212271259,0.05,68992.0,68991.0,0.811699]
[1722212271459,0.15,68992.0,68991.0,0.811699]
[1722212271714,0.01518078,69005.0,69004.0,1.047545]
[1722212271892,0.014,69026.0,69015.0,0.500749]
[1722212272092,0.014,69026.0,69015.0,1.260448]
[1722212272093,0.04623629,69024.0,69015.0,1.260448]
[1722212272288,0.014,69026.0,69015.0,1.32962953]
[1722212272498,0.014,69026.0,69015.0,1.35262953]
[1722212272690,0.014,69026.0,69015.0,1.62998359]
[1722212272866,0.014,69026.0,69015.0,1.39815059]
[1722212273287,0.014,69026.0,69015.0,1.69815059]
[1722212273933,0.014,69026.0,69015.0,1.37515059]
[1722212274436,0.014,69026.0,69015.0,1.30596906]
[1722212274437,0.04623629,69024.0,69015.0,1.30596906]
[1722212274594,0.014,69026.0,69015.0,1.30596906]
[1722212275013,0.014,69026.0,69015.0,1.32896906]
[1722212276612,0.014,69026.0,69015.0,1.30596906]
[1722212276996,0.05698355,69016.0,69015.0,1.30596906]
[1722212277886,0.05698355,69016.0,69015.0,1.32896906]
[1722212278029,0.05698355,69016.0,69015.0,1.47922863]
[1722212278917,0.05698355,69016.0,69015.0,1.30596906]
[1722212279120,0.05698355,69016.0,69015.0,1.260448]
[1722212281056,1e-06,69026.0,69025.0,1.8067]
[1722212281263,1e-06,69026.0,69025.0,2.30017957]
[1722212281458,8.6e-07,69029.0,69028.0,0.819692]
[1722212281658,8.6e-07,69029.0,69028.0,1.70072957]
[1722212281835,0.01245,69038.0,69032.0,0.87944]
[1722212282142,0.01245,69038.0,69032.0,1.55625585]
[1722212282345,6e-08,69033.0,69032.0,2.20114357]
[1722212282516,6e-08,69033.0,69032.0,2.23229843]
[1722212283167,6e-08,69033.0,69032.0,2.00052243]
[1722212283484,6e-08,69033.0,69032.0,1.37745585]
[1722212283657,6e-08,69033.0,69032.0,0.88904803]
[1722212283865,6e-08,69033.0,69032.0,0.811216]
[1722212284630,6e-08,69033.0,69032.0,1.042992]
[1722212284979,6e-08,69033.0,69032.0,0.811216]
[1722212285718,6e-08,69033.0,69032.0,0.62177761]
[1722212285919,6e-08,69033.0,69026.0,0.07512979]
[1722212285920,0.1,69027.0,69026.0,0.19102779]
[1722212286281,6e-08,69033.0,69026.0,0.07512979]
[1722212286478,6e-08,69033.0,69032.0,0.347664]
[1722212286700,6e-08,69033.0,69032.0,0.811216]
[1722212287460,0.00100006,69033.0,69032.0,1.056992]
[1722212288572,0.00100006,69033.0,69032.0,0.825216]
[1722212288916,0.10100006,69033.0,69032.0,0.361664]
[1722212289115,0.10100006,69033.0,69032.0,0.59344]
[1722212289729,0.10100006,69033.0,69032.0,0.014]
[1722212290702,0.10100006,69033.0,69032.0,0.361664]
[1722212290871,0.10100006,69033.0,69032.0,0.59344]
[1722212291111,0.10000006,69033.0,69032.0,0.57944]
[1722212291293,6e-08,69033.0,69032.0,0.811216]
[1722212291528,6e-08,69033.0,69032.0,0.8943376]
[1722212291955,6e-08,69033.0,69032.0,1.0473376]
[1722212292382,0.10000006,69033.0,69032.0,0.117888]
[1722212292808,0.10000006,69033.0,69027.0,0.115896]
[1722212292809,0.05,69028.0,69027.0,0.115896]
[1722212293005,0.1,69028.0,69027.0,0.579482]
[1722212294585,0.1,69028.0,69027.0,0.347689]
[1722212294798,0.00083006,69033.0,69017.0,0.115912]
[1722212294799,0.1,69019.0,69017.0,0.115912]
[1722212294996,0.1611,69016.0,69015.0,0.000913]
[1722212295589,0.1611,69016.0,69015.0,0.07604279]
[1722212296012,0.1611,69016.0,69015.0,0.19195879]
[1722212296230,0.1611,69016.0,69015.0,0.48935717]
[1722212296444,0.1,69016.0,69015.0,0.48935717]
[1722212296647,0.1,69016.0,69015.0,0.07604279]
[1722212297219,0.1,69016.0,69015.0,0.07804279]
[1722212297944,0.1,69016.0,69015.0,0.08004279]
[1722212298144,0.1,69016.0,69015.0,0.002913]
[1722212298370,0.103,69016.0,69015.0,0.025913]
[1722212298770,0.107,69016.0,69015.0,0.025913]
[1722212299150,0.107,69016.0,69015.0,0.141829]
[1722212299505,0.003,69016.0,69015.0,0.605495]
[1722212299741,0.1,69016.0,69015.0,0.025913]
[1722212299948,0.107,69016.0,69015.0,0.141829]
[1722212300203,0.107,69016.0,69015.0,0.025913]
[1722212300389,0.103,69016.0,69015.0,0.025913]
[1722212300719,0.103,69016.0,69015.0,0.373662]
[1722212301501,0.1,69016.0,69015.0,0.373662]
[1722212301700,0.1,69016.0,69015.0,0.376662]
[1722212301899,0.1,69016.0,69015.0,0.028913]
[1722212302072,0.1,69016.0,69015.0,0.21995879]
[1722212302282,0.1,69016.0,69015.0,0.21695879]
[1722212302484,0.1,69016.0,69015.0,0.44979179]
[1722212302886,0.1,69016.0,69015.0,0.21695879]
[1722212303432,0.105,69016.0,69015.0,0.10104279]
[1722212303829,0.220915,69016.0,69015.0,0.10104279]
[1722212304163,0.220915,69016.0,69015.0,0.10604279]
[1722212304164,0.105,69016.0,69015.0,0.10604279]
[1722212304489,0.105,69016.0,69015.0,0.10104279]
[1722212305085,0.105,69016.0,69015.0,0.10504279]
[1722212305280,0.1,69016.0,69015.0,0.10504279]
[1722212305741,0.1,69016.0,69015.0,0.10704279]
[1722212305895,0.1,69016.0,69015.0,0.10304279]
[1722212306101,0.1,69016.0,69015.0,0.10104279]
[1722212306503,0.104,69016.0,69015.0,0.10104279]
[1722212307237,1.088375,69016.0,69015.0,0.025913]
[1722212307435,1.602035,69016.0,69015.0,0.025913]
[1722212307615,1.611072,69016.0,69015.0,0.025913]
[1722212308000,1.62011084,69016.0,69015.0,0.025913]
[1722212308202,1.6973523,69016.0,69015.0,0.025913]
[1722212308488,1.60707292,69016.0,69015.0,0.025913]
[1722212309774,1.60707292,69016.0,68994.0,0.07512979]
[1722212309775,0.05,68995.0,68994.0,0.07512979]
[1722212310314,0.05,68995.0,68994.0,0.19108179]
[1722212310516,0.05,68995.0,68994.0,0.07512979]
[1722212311208,0.1,68995.0,68994.0,0.68559467]
[1722212311431,0.014,69016.0,68995.0,0.0624]
[1722212311432,0.1,69005.0,68995.0,0.0624]